[Event "Titled Tuesday Blitz December 13 Early 2022"]
[White "Aldokhin, Ivan"]
[Black "Dudzinski, Pawel"]
[WhiteFideId "24115720"]
[BlackFideId "1117890"]
[WhiteElo "2313"]
[BlackElo "2099"]
[Result "1-0"]
[Round "03"]
[TimeControl "180+1"]
[Date "2022.12.14"]
[WhiteClock "0:00:42"]
[BlackClock "0:00:50"]

1. e4 {[%clk 0:02:59]}  c6 {[%clk 0:02:57]} 2. Nc3 {[%clk 0:02:58]}  d5 {[%clk 0:02:58]} 3. d4 {[%clk 0:02:57]}  g6 {[%clk 0:02:51]} 4. Nf3 {[%clk 0:02:56]}  Bg7 {[%clk 0:02:52]} 5. h3 {[%clk 0:02:56]}  Nf6 {[%clk 0:02:51]} 6. e5 {[%clk 0:02:55]}  Ne4 {[%clk 0:02:52]} 7. Nxe4 {[%clk 0:02:50]}  dxe4 {[%clk 0:02:53]} 8. Ng5 {[%clk 0:02:50]}  c5 {[%clk 0:02:53]} 9. Bc4 {[%clk 0:02:43]}  O-O {[%clk 0:02:52]} 10. c3 {[%clk 0:02:35]}  cxd4 {[%clk 0:02:51]} 11. cxd4 {[%clk 0:02:34]}  Nc6 {[%clk 0:02:51]} 12. Be3 {[%clk 0:02:34]}  Qa5+ {[%clk 0:02:45]} 13. Kf1 {[%clk 0:02:33]}  h6 {[%clk 0:02:26]} 14. Nxe4 {[%clk 0:02:20]}  Bf5 {[%clk 0:02:20]} 15. Ng3 {[%clk 0:02:16]}  Be6 {[%clk 0:02:15]} 16. Bxe6 {[%clk 0:02:12]}  fxe6 {[%clk 0:02:15]} 17. Qg4 {[%clk 0:02:08]}  Qb5+ {[%clk 0:01:56]} 18. Kg1 {[%clk 0:02:08]}  Qxb2 {[%clk 0:01:56]} 19. Kh2 {[%clk 0:01:58]}  Kf7 {[%clk 0:01:40]} 20. Rab1 {[%clk 0:01:25]}  Qxa2 {[%clk 0:01:40]} 21. Rxb7 {[%clk 0:01:24]}  Rad8 {[%clk 0:01:32]} 22. Qf3+ {[%clk 0:01:22]}  Kg8 {[%clk 0:01:31]} 23. Qxc6 {[%clk 0:01:21]}  Rf7 {[%clk 0:01:24]} 24. Rhb1 {[%clk 0:01:12]}  a5 {[%clk 0:01:15]} 25. Rb8 {[%clk 0:01:11]}  Rxb8 {[%clk 0:01:16]} 26. Rxb8+ {[%clk 0:01:10]}  Kh7 {[%clk 0:01:16]} 27. Ne4 {[%clk 0:00:50]}  a4 {[%clk 0:01:09]} 28. Nc3 {[%clk 0:00:47]}  Qc2 {[%clk 0:01:08]} 29. Qxe6 {[%clk 0:00:44]}  Qxc3 {[%clk 0:00:50]} 30. Qxf7 {[%clk 0:00:42]} 1-0


[Site "https://www.chess.com"]

[Event "Titled Tuesday Blitz December 13 Early 2022"]
[White "Alexakis, Dimitris"]
[Black "Deac, Bogdan-Daniel"]
[WhiteFideId "4277023"]
[BlackFideId "1226380"]
[WhiteElo "2470"]
[BlackElo "2649"]
[Result "1-0"]
[Round "03"]
[TimeControl "180+1"]
[Date "2022.12.13"]
[WhiteClock "0:00:15"]
[BlackClock "0:00:04"]

1. e4 {[%clk 0:02:56]}  c6 {[%clk 0:02:59]} 2. d4 {[%clk 0:02:55]}  d5 {[%clk 0:03:00]} 3. Nd2 {[%clk 0:02:55]}  a6 {[%clk 0:03:00]} 4. c3 {[%clk 0:02:49]}  g6 {[%clk 0:02:56]} 5. Ngf3 {[%clk 0:02:46]}  Bg4 {[%clk 0:02:53]} 6. Bd3 {[%clk 0:02:43]}  Bg7 {[%clk 0:02:52]} 7. h3 {[%clk 0:02:41]}  Bxf3 {[%clk 0:02:52]} 8. Qxf3 {[%clk 0:02:39]}  e6 {[%clk 0:02:52]} 9. h4 {[%clk 0:02:39]}  h5 {[%clk 0:02:49]} 10. Qg3 {[%clk 0:02:34]}  Ne7 {[%clk 0:02:39]} 11. Nf3 {[%clk 0:02:33]}  Nd7 {[%clk 0:02:37]} 12. Ng5 {[%clk 0:02:33]}  Nf6 {[%clk 0:02:28]} 13. f3 {[%clk 0:02:26]}  Nh7 {[%clk 0:02:22]} 14. Bf4 {[%clk 0:02:19]}  Nxg5 {[%clk 0:02:19]} 15. hxg5 {[%clk 0:02:19]}  Qb6 {[%clk 0:02:01]} 16. b4 {[%clk 0:02:07]}  O-O-O {[%clk 0:01:28]} 17. a4 {[%clk 0:01:52]}  Bxd4 {[%clk 0:01:17]} 18. cxd4 {[%clk 0:01:45]}  Qxb4+ {[%clk 0:01:15]} 19. Ke2 {[%clk 0:01:39]}  Qb2+ {[%clk 0:01:07]} 20. Bd2 {[%clk 0:01:37]}  Qxd4 {[%clk 0:01:04]} 21. Rab1 {[%clk 0:01:20]}  dxe4 {[%clk 0:00:53]} 22. fxe4 {[%clk 0:01:20]}  Rd7 {[%clk 0:00:53]} 23. Rb4 {[%clk 0:00:53]}  Qa7 {[%clk 0:00:52]} 24. Be3 {[%clk 0:00:47]}  c5 {[%clk 0:00:36]} 25. Rc1 {[%clk 0:00:34]}  Rc7 {[%clk 0:00:17]} 26. Qe5 {[%clk 0:00:27]}  Rd8 {[%clk 0:00:10]} 27. Bxc5 {[%clk 0:00:25]}  Qa8 {[%clk 0:00:03]} 28. Bxe7 {[%clk 0:00:18]}  Rxc1 {[%clk 0:00:03]} 29. Bxd8 {[%clk 0:00:18]}  b5 {[%clk 0:00:03]} 30. Ba5 {[%clk 0:00:12]}  Qc6 {[%clk 0:00:02]} 31. axb5 {[%clk 0:00:11]}  Qd7 {[%clk 0:00:01]} 32. Rc4+ {[%clk 0:00:09]}  Rxc4 {[%clk 0:00:01]} 33. Bxc4 {[%clk 0:00:10]}  Qe7 {[%clk 0:00:01]} 34. Qc7+ {[%clk 0:00:10]}  Qxc7 {[%clk 0:00:01]} 35. Bxc7 {[%clk 0:00:11]}  axb5 {[%clk 0:00:02]} 36. Bxb5 {[%clk 0:00:11]}  Kxc7 {[%clk 0:00:02]} 37. Be8 {[%clk 0:00:12]}  Kd6 {[%clk 0:00:02]} 38. Bxf7 {[%clk 0:00:12]}  Ke5 {[%clk 0:00:02]} 39. Bxg6 {[%clk 0:00:13]}  Kf4 {[%clk 0:00:03]} 40. Bxh5 {[%clk 0:00:14]}  Kxg5 {[%clk 0:00:04]} 41. Bf3 {[%clk 0:00:15]} 1-0


[Site "https://www.chess.com"]

[Event "Titled Tuesday Blitz December 13 Early 2022"]
[White "Aloma Vidal, Robert"]
[Black "Sai Han Thiha"]
[WhiteFideId "2260409"]
[BlackFideId "13012290"]
[WhiteElo "2435"]
[BlackElo "1954"]
[Result "1-0"]
[Round "03"]
[TimeControl "180+1"]
[Date "2022.12.14"]
[WhiteClock "0:00:11"]
[BlackClock "0:00:03"]

1. e4 {[%clk 0:03:00]}  c6 {[%clk 0:03:00]} 2. d4 {[%clk 0:03:00]}  d5 {[%clk 0:03:01]} 3. e5 {[%clk 0:03:01]}  Bf5 {[%clk 0:03:00]} 4. Nf3 {[%clk 0:03:00]}  e6 {[%clk 0:03:01]} 5. Be2 {[%clk 0:03:01]}  Nd7 {[%clk 0:03:01]} 6. O-O {[%clk 0:03:01]}  h6 {[%clk 0:03:01]} 7. a4 {[%clk 0:03:00]}  Ne7 {[%clk 0:02:54]} 8. a5 {[%clk 0:03:00]}  g5 {[%clk 0:02:42]} 9. b4 {[%clk 0:02:59]}  Bg7 {[%clk 0:02:31]} 10. c3 {[%clk 0:02:46]}  f6 {[%clk 0:02:29]} 11. exf6 {[%clk 0:02:45]}  Bxf6 {[%clk 0:02:19]} 12. Bd3 {[%clk 0:02:43]}  Qc7 {[%clk 0:01:54]} 13. Re1 {[%clk 0:02:37]}  Kf7 {[%clk 0:01:41]} 14. Ra2 {[%clk 0:02:02]}  Rae8 {[%clk 0:01:37]} 15. Rae2 {[%clk 0:01:56]}  Ng6 {[%clk 0:01:36]} 16. h3 {[%clk 0:01:49]}  b6 {[%clk 0:01:22]} 17. axb6 {[%clk 0:01:46]}  axb6 {[%clk 0:01:23]} 18. Na3 {[%clk 0:01:42]}  Qd6 {[%clk 0:01:20]} 19. Qc2 {[%clk 0:01:36]}  Bxd3 {[%clk 0:01:03]} 20. Qxd3 {[%clk 0:01:37]}  Re7 {[%clk 0:00:58]} 21. c4 {[%clk 0:01:20]}  Rhe8 {[%clk 0:00:53]} 22. c5 {[%clk 0:01:16]}  Qc7 {[%clk 0:00:46]} 23. Nc2 {[%clk 0:01:01]}  b5 {[%clk 0:00:46]} 24. Nh2 {[%clk 0:00:50]}  e5 {[%clk 0:00:36]} 25. Ng4 {[%clk 0:00:49]}  Kg7 {[%clk 0:00:23]} 26. Qf5 {[%clk 0:00:40]}  Rf8 {[%clk 0:00:23]} 27. dxe5 {[%clk 0:00:37]}  Ndxe5 {[%clk 0:00:16]} 28. Nxe5 {[%clk 0:00:20]}  Rxe5 {[%clk 0:00:14]} 29. Rxe5 {[%clk 0:00:19]}  Bxe5 {[%clk 0:00:14]} 30. Qd3 {[%clk 0:00:19]}  Qf7 {[%clk 0:00:14]} 31. Re2 {[%clk 0:00:17]}  Qf5 {[%clk 0:00:14]} 32. Qxf5 {[%clk 0:00:17]}  Rxf5 {[%clk 0:00:15]} 33. g3 {[%clk 0:00:16]}  Rf3 {[%clk 0:00:14]} 34. Kg2 {[%clk 0:00:16]}  Rb3 {[%clk 0:00:13]} 35. Bd2 {[%clk 0:00:14]}  Kf6 {[%clk 0:00:13]} 36. Ne1 {[%clk 0:00:13]}  Bd4 {[%clk 0:00:09]} 37. Nf3 {[%clk 0:00:13]}  Ba1 {[%clk 0:00:08]} 38. Re1 {[%clk 0:00:12]}  Bb2 {[%clk 0:00:06]} 39. Rb1 {[%clk 0:00:12]}  d4 {[%clk 0:00:03]} 40. Nxd4 {[%clk 0:00:11]}  Rd3 {[%clk 0:00:04]} 41. Rxb2 {[%clk 0:00:11]}  Rxd4 {[%clk 0:00:02]} 42. Bc3 {[%clk 0:00:11]}  Ke5 {[%clk 0:00:03]} 43. Rd2 {[%clk 0:00:11]} 1-0


[Site "https://www.chess.com"]

[Event "Titled Tuesday Blitz December 13 Early 2022"]
[White "Andreikin, Dmitry"]
[Black "Gareyev, Timur"]
[WhiteFideId "4158814"]
[BlackFideId "14200937"]
[WhiteElo "2735"]
[BlackElo "2553"]
[Result "1-0"]
[Round "03"]
[TimeControl "180+1"]
[Date "2022.12.13"]
[WhiteClock "0:00:16"]
[BlackClock "0:00:07"]

1. d4 {[%clk 0:03:00]}  d6 {[%clk 0:02:58]} 2. e4 {[%clk 0:02:59]}  g6 {[%clk 0:02:57]} 3. Nc3 {[%clk 0:02:55]}  a6 {[%clk 0:02:56]} 4. h4 {[%clk 0:02:48]}  h5 {[%clk 0:02:50]} 5. Bg5 {[%clk 0:02:47]}  Bg7 {[%clk 0:02:41]} 6. Qd2 {[%clk 0:02:44]}  Nd7 {[%clk 0:02:36]} 7. O-O-O {[%clk 0:02:42]}  b5 {[%clk 0:02:34]} 8. e5 {[%clk 0:02:21]}  Bb7 {[%clk 0:02:23]} 9. Nf3 {[%clk 0:02:06]}  Nb6 {[%clk 0:01:57]} 10. e6 {[%clk 0:01:57]}  f5 {[%clk 0:01:53]} 11. Rh3 {[%clk 0:01:39]}  Nh6 {[%clk 0:01:36]} 12. Ne2 {[%clk 0:01:17]}  Nd5 {[%clk 0:01:30]} 13. Nf4 {[%clk 0:01:04]}  Nxf4 {[%clk 0:01:27]} 14. Bxf4 {[%clk 0:01:05]}  Ng4 {[%clk 0:01:22]} 15. Ng5 {[%clk 0:01:04]}  O-O {[%clk 0:01:09]} 16. f3 {[%clk 0:01:01]}  Nf6 {[%clk 0:01:00]} 17. Rg3 {[%clk 0:01:00]}  Qe8 {[%clk 0:00:57]} 18. Bd3 {[%clk 0:00:58]}  Nd5 {[%clk 0:00:54]} 19. Nf7 {[%clk 0:00:40]}  Rxf7 {[%clk 0:00:41]} 20. exf7+ {[%clk 0:00:41]}  Qxf7 {[%clk 0:00:41]} 21. Bh6 {[%clk 0:00:41]}  Bh8 {[%clk 0:00:26]} 22. Rg5 {[%clk 0:00:32]}  Bxd4 {[%clk 0:00:24]} 23. Bxf5 {[%clk 0:00:27]}  Be3 {[%clk 0:00:23]} 24. Rxg6+ {[%clk 0:00:22]}  Kh8 {[%clk 0:00:19]} 25. Bxe3 {[%clk 0:00:20]}  Qxf5 {[%clk 0:00:15]} 26. Rg5 {[%clk 0:00:20]}  Qe6 {[%clk 0:00:07]} 27. Bd4+ {[%clk 0:00:16]} 1-0


[Site "https://www.chess.com"]

[Event "Titled Tuesday Blitz December 13 Early 2022"]
[White "Asavasaetakul, Chawit"]
[Black "Piorun, Kacper"]
[WhiteFideId "6204856"]
[BlackFideId "1130420"]
[WhiteElo "1919"]
[BlackElo "2572"]
[Result "0-1"]
[Round "03"]
[TimeControl "180+1"]
[Date "2022.12.13"]
[WhiteClock "0:00:20"]
[BlackClock "0:00:05"]

1. e4 {[%clk 0:03:00]}  d5 {[%clk 0:02:59]} 2. exd5 {[%clk 0:03:00]}  Qxd5 {[%clk 0:03:00]} 3. Nc3 {[%clk 0:03:01]}  Qd8 {[%clk 0:03:00]} 4. d4 {[%clk 0:03:02]}  Nf6 {[%clk 0:03:01]} 5. Nf3 {[%clk 0:03:02]}  g6 {[%clk 0:03:01]} 6. Bc4 {[%clk 0:03:02]}  Bg7 {[%clk 0:03:02]} 7. O-O {[%clk 0:03:02]}  O-O {[%clk 0:03:02]} 8. h3 {[%clk 0:03:01]}  a6 {[%clk 0:02:53]} 9. Re1 {[%clk 0:03:01]}  b5 {[%clk 0:02:51]} 10. Bb3 {[%clk 0:03:01]}  Bb7 {[%clk 0:02:51]} 11. Bg5 {[%clk 0:03:00]}  Nc6 {[%clk 0:02:49]} 12. a3 {[%clk 0:02:46]}  h6 {[%clk 0:02:11]} 13. Bh4 {[%clk 0:02:45]}  g5 {[%clk 0:02:11]} 14. Bg3 {[%clk 0:02:45]}  Na5 {[%clk 0:02:08]} 15. Ba2 {[%clk 0:02:43]}  e6 {[%clk 0:02:09]} 16. Ne5 {[%clk 0:02:42]}  Rc8 {[%clk 0:01:57]} 17. b4 {[%clk 0:02:25]}  Nc6 {[%clk 0:01:54]} 18. Nxc6 {[%clk 0:01:49]}  Bxc6 {[%clk 0:01:52]} 19. Qd3 {[%clk 0:01:48]}  Nh5 {[%clk 0:01:38]} 20. Rad1 {[%clk 0:01:36]}  Nxg3 {[%clk 0:01:32]} 21. Qxg3 {[%clk 0:01:36]}  Qd6 {[%clk 0:01:25]} 22. Qe3 {[%clk 0:01:28]}  Rcd8 {[%clk 0:01:10]} 23. Ne4 {[%clk 0:01:24]}  Qe7 {[%clk 0:00:55]} 24. c3 {[%clk 0:01:20]}  Bd5 {[%clk 0:00:54]} 25. Bb1 {[%clk 0:01:19]}  a5 {[%clk 0:00:48]} 26. Nc5 {[%clk 0:01:19]}  axb4 {[%clk 0:00:48]} 27. axb4 {[%clk 0:01:20]}  c6 {[%clk 0:00:41]} 28. Qd3 {[%clk 0:01:19]}  f5 {[%clk 0:00:41]} 29. Nxe6 {[%clk 0:00:57]}  Bxe6 {[%clk 0:00:40]} 30. Ba2 {[%clk 0:00:57]}  Rf6 {[%clk 0:00:31]} 31. Qe2 {[%clk 0:00:40]}  Re8 {[%clk 0:00:21]} 32. d5 {[%clk 0:00:37]}  cxd5 {[%clk 0:00:18]} 33. Qxb5 {[%clk 0:00:36]}  Kh8 {[%clk 0:00:12]} 34. Bxd5 {[%clk 0:00:33]}  Qf7 {[%clk 0:00:12]} 35. Bxe6 {[%clk 0:00:30]}  Rfxe6 {[%clk 0:00:11]} 36. Rxe6 {[%clk 0:00:29]}  Rxe6 {[%clk 0:00:12]} 37. Qb8+ {[%clk 0:00:29]}  Kh7 {[%clk 0:00:12]} 38. c4 {[%clk 0:00:29]}  Qe7 {[%clk 0:00:08]} 39. Kf1 {[%clk 0:00:24]}  Re4 {[%clk 0:00:06]} 40. Qb5 {[%clk 0:00:23]}  Qe6 {[%clk 0:00:06]} 41. c5 {[%clk 0:00:23]}  Rd4 {[%clk 0:00:03]} 42. Rxd4 {[%clk 0:00:21]}  Bxd4 {[%clk 0:00:03]} 43. Qd3 {[%clk 0:00:21]}  Be5 {[%clk 0:00:02]} 44. g4 {[%clk 0:00:22]}  Kg6 {[%clk 0:00:02]} 45. b5 {[%clk 0:00:21]}  Kf6 {[%clk 0:00:02]} 46. gxf5 {[%clk 0:00:21]}  Qxf5 {[%clk 0:00:03]} 47. Qxf5+ {[%clk 0:00:21]}  Kxf5 {[%clk 0:00:03]} 48. Ke2 {[%clk 0:00:22]}  Ke6 {[%clk 0:00:04]} 49. Kf3 {[%clk 0:00:22]}  Kd5 {[%clk 0:00:04]} 50. c6 {[%clk 0:00:23]}  Kc5 {[%clk 0:00:04]} 51. Ke4 {[%clk 0:00:23]}  Bc7 {[%clk 0:00:03]} 52. Kf5 {[%clk 0:00:24]}  Kxb5 {[%clk 0:00:04]} 53. Kg6 {[%clk 0:00:24]}  Kxc6 {[%clk 0:00:03]} 54. Kxh6 {[%clk 0:00:25]}  Bd8 {[%clk 0:00:04]} 55. Kh5 {[%clk 0:00:24]}  Kd5 {[%clk 0:00:04]} 56. Kg4 {[%clk 0:00:24]}  Ke4 {[%clk 0:00:04]} 57. f3+ {[%clk 0:00:24]}  Ke3 {[%clk 0:00:05]} 58. Kg3 {[%clk 0:00:25]}  Bc7+ {[%clk 0:00:03]} 59. Kg4 {[%clk 0:00:25]}  Bd8 {[%clk 0:00:04]} 60. Kg3 {[%clk 0:00:25]}  Ke2 {[%clk 0:00:03]} 61. f4 {[%clk 0:00:25]}  Bc7 {[%clk 0:00:03]} 62. Kg4 {[%clk 0:00:26]}  gxf4 {[%clk 0:00:03]} 63. h4 {[%clk 0:00:26]}  Ke3 {[%clk 0:00:04]} 64. h5 {[%clk 0:00:21]}  f3 {[%clk 0:00:04]} 65. h6 {[%clk 0:00:20]}  Be5 {[%clk 0:00:05]} 66. Kf5 {[%clk 0:00:20]}  Ba1 {[%clk 0:00:05]} 67. h7 {[%clk 0:00:20]}  f2 {[%clk 0:00:05]} 0-1


[Site "https://www.chess.com"]

[Event "Titled Tuesday Blitz December 13 Early 2022"]
[White "Ashraf, Artin"]
[Black "Avinash, Ramesh"]
[WhiteFideId "22514805"]
[BlackFideId "45018340"]
[WhiteElo "2243"]
[BlackElo "2264"]
[Result "0-1"]
[Round "03"]
[TimeControl "180+1"]
[Date "2022.12.13"]
[WhiteClock "0:00:09"]
[BlackClock "0:00:22"]

1. b3 {[%clk 0:03:00]}  d5 {[%clk 0:02:58]} 2. Nf3 {[%clk 0:03:00]}  Nf6 {[%clk 0:02:57]} 3. e3 {[%clk 0:03:00]}  g6 {[%clk 0:02:58]} 4. Bb2 {[%clk 0:03:00]}  Bg7 {[%clk 0:02:59]} 5. c4 {[%clk 0:02:59]}  c6 {[%clk 0:02:57]} 6. Be2 {[%clk 0:02:58]}  O-O {[%clk 0:02:58]} 7. O-O {[%clk 0:02:58]}  a5 {[%clk 0:02:59]} 8. Nc3 {[%clk 0:02:58]}  Ne4 {[%clk 0:02:57]} 9. Qc2 {[%clk 0:02:57]}  Bf5 {[%clk 0:02:53]} 10. d3 {[%clk 0:02:56]}  Nxc3 {[%clk 0:02:52]} 11. Bxc3 {[%clk 0:02:55]}  Bg4 {[%clk 0:02:25]} 12. Bxg7 {[%clk 0:02:39]}  Kxg7 {[%clk 0:02:24]} 13. Ne5 {[%clk 0:02:08]}  Bxe2 {[%clk 0:02:23]} 14. Qxe2 {[%clk 0:02:09]}  Nd7 {[%clk 0:02:23]} 15. Qb2 {[%clk 0:02:09]}  Nxe5 {[%clk 0:02:23]} 16. Qxe5+ {[%clk 0:02:09]}  f6 {[%clk 0:02:23]} 17. Qe6 {[%clk 0:02:08]}  dxc4 {[%clk 0:02:09]} 18. dxc4 {[%clk 0:02:05]}  Qd6 {[%clk 0:02:10]} 19. Qxd6 {[%clk 0:02:01]}  exd6 {[%clk 0:02:10]} 20. Rfd1 {[%clk 0:02:00]}  Rfd8 {[%clk 0:02:11]} 21. Rd3 {[%clk 0:01:58]}  Kf7 {[%clk 0:02:11]} 22. Kf1 {[%clk 0:01:58]}  a4 {[%clk 0:02:09]} 23. b4 {[%clk 0:01:58]}  Ke6 {[%clk 0:02:08]} 24. Rad1 {[%clk 0:01:44]}  f5 {[%clk 0:01:56]} 25. Ke2 {[%clk 0:01:41]}  Rac8 {[%clk 0:01:31]} 26. Ra3 {[%clk 0:01:26]}  b5 {[%clk 0:01:30]} 27. Rc3 {[%clk 0:01:21]}  d5 {[%clk 0:01:25]} 28. c5 {[%clk 0:01:13]}  Kf6 {[%clk 0:01:22]} 29. h4 {[%clk 0:01:08]}  Re8 {[%clk 0:01:22]} 30. Rd4 {[%clk 0:01:04]}  Re5 {[%clk 0:01:19]} 31. f3 {[%clk 0:01:01]}  Rce8 {[%clk 0:01:18]} 32. Kf2 {[%clk 0:01:01]}  h6 {[%clk 0:01:17]} 33. g4 {[%clk 0:00:58]}  g5 {[%clk 0:01:15]} 34. hxg5+ {[%clk 0:00:53]}  hxg5 {[%clk 0:01:15]} 35. gxf5 {[%clk 0:00:46]}  Kxf5 {[%clk 0:01:13]} 36. Rd1 {[%clk 0:00:29]}  Rh8 {[%clk 0:01:12]} 37. Kg3 {[%clk 0:00:29]}  Re6 {[%clk 0:01:11]} 38. Rc2 {[%clk 0:00:15]}  Reh6 {[%clk 0:01:11]} 39. e4+ {[%clk 0:00:15]}  dxe4 {[%clk 0:00:45]} 40. fxe4+ {[%clk 0:00:16]}  Ke5 {[%clk 0:00:46]} 41. Rf2 {[%clk 0:00:14]}  Rh3+ {[%clk 0:00:21]} 42. Kg4 {[%clk 0:00:14]}  Kxe4 {[%clk 0:00:22]} 43. Kxg5 {[%clk 0:00:11]}  Rg3+ {[%clk 0:00:21]} 44. Kf6 {[%clk 0:00:08]}  Rf8+ {[%clk 0:00:21]} 45. Ke6 {[%clk 0:00:08]}  Rxf2 {[%clk 0:00:22]} 46. Kd6 {[%clk 0:00:09]}  Rg6+ {[%clk 0:00:22]} 0-1


[Site "https://www.chess.com"]

[Event "Titled Tuesday Blitz December 13 Early 2022"]
[White "Babazada, Khazar"]
[Black "Roque Sola, Gisela"]
[WhiteFideId "13413554"]
[BlackFideId "5120241"]
[WhiteElo "2810"]
[BlackElo "2138"]
[Result "1-0"]
[Round "03"]
[TimeControl "180+1"]
[Date "2022.12.14"]
[WhiteClock "0:01:09"]
[BlackClock "0:00:20"]

1. Nf3 {[%clk 0:03:00]}  Nf6 {[%clk 0:02:58]} 2. c4 {[%clk 0:03:00]}  Nc6 {[%clk 0:02:57]} 3. d4 {[%clk 0:02:59]}  d5 {[%clk 0:02:56]} 4. Nc3 {[%clk 0:02:58]}  e6 {[%clk 0:02:54]} 5. Bg5 {[%clk 0:02:57]}  Be7 {[%clk 0:02:51]} 6. e3 {[%clk 0:02:56]}  O-O {[%clk 0:02:49]} 7. Bd3 {[%clk 0:02:55]}  h6 {[%clk 0:02:49]} 8. h4 {[%clk 0:02:55]}  dxc4 {[%clk 0:02:48]} 9. Bxc4 {[%clk 0:02:53]}  Nd5 {[%clk 0:02:48]} 10. Bxe7 {[%clk 0:02:50]}  Ncxe7 {[%clk 0:02:47]} 11. Ne4 {[%clk 0:02:40]}  b6 {[%clk 0:02:37]} 12. a3 {[%clk 0:02:35]}  Nf5 {[%clk 0:02:16]} 13. g4 {[%clk 0:02:30]}  Nd6 {[%clk 0:02:16]} 14. Nxd6 {[%clk 0:02:24]}  Qxd6 {[%clk 0:02:17]} 15. g5 {[%clk 0:02:22]}  Bb7 {[%clk 0:01:56]} 16. Bd3 {[%clk 0:02:17]}  Nxe3 {[%clk 0:01:48]} 17. fxe3 {[%clk 0:02:05]}  Qg3+ {[%clk 0:01:47]} 18. Kd2 {[%clk 0:02:05]}  Bxf3 {[%clk 0:01:43]} 19. Qg1 {[%clk 0:02:05]}  Qxg1 {[%clk 0:01:38]} 20. Rhxg1 {[%clk 0:02:05]}  h5 {[%clk 0:01:38]} 21. Raf1 {[%clk 0:01:59]}  Bg4 {[%clk 0:01:37]} 22. b4 {[%clk 0:01:50]}  Rfd8 {[%clk 0:01:26]} 23. Rc1 {[%clk 0:01:47]}  e5 {[%clk 0:01:22]} 24. Rxc7 {[%clk 0:01:47]}  exd4 {[%clk 0:01:21]} 25. e4 {[%clk 0:01:47]}  a5 {[%clk 0:01:19]} 26. b5 {[%clk 0:01:44]}  Rac8 {[%clk 0:01:18]} 27. Rgc1 {[%clk 0:01:44]}  Kf8 {[%clk 0:01:12]} 28. R7c6 {[%clk 0:01:40]}  Rxc6 {[%clk 0:01:09]} 29. bxc6 {[%clk 0:01:41]}  Ke7 {[%clk 0:00:47]} 30. Rb1 {[%clk 0:01:19]}  Kd6 {[%clk 0:00:41]} 31. Rxb6 {[%clk 0:01:19]}  Kc7 {[%clk 0:00:41]} 32. Ra6 {[%clk 0:01:16]}  Be6 {[%clk 0:00:36]} 33. Bb5 {[%clk 0:01:14]}  Rb8 {[%clk 0:00:35]} 34. a4 {[%clk 0:01:13]}  g6 {[%clk 0:00:26]} 35. e5 {[%clk 0:01:12]}  Bd5 {[%clk 0:00:23]} 36. Kd3 {[%clk 0:01:10]}  Rd8 {[%clk 0:00:22]} 37. Ra7+ {[%clk 0:01:10]}  Kb8 {[%clk 0:00:20]} 38. c7+ {[%clk 0:01:09]} 1-0


[Site "https://www.chess.com"]

[Event "Titled Tuesday Blitz December 13 Early 2022"]
[White "Bacrot, Etienne"]
[Black "Javakhishvili, Lela"]
[WhiteFideId "605506"]
[BlackFideId "13601458"]
[WhiteElo "2667"]
[BlackElo "2364"]
[Result "1/2-1/2"]
[Round "03"]
[TimeControl "180+1"]
[Date "2022.12.14"]
[WhiteClock "0:00:09"]
[BlackClock "0:00:22"]

1. e4 {[%clk 0:03:00]}  e5 {[%clk 0:02:59]} 2. Nf3 {[%clk 0:03:01]}  Nc6 {[%clk 0:02:59]} 3. Bb5 {[%clk 0:03:01]}  Nf6 {[%clk 0:02:59]} 4. O-O {[%clk 0:03:01]}  Nxe4 {[%clk 0:02:58]} 5. Re1 {[%clk 0:03:01]}  Nd6 {[%clk 0:02:58]} 6. Nxe5 {[%clk 0:03:01]}  Be7 {[%clk 0:02:57]} 7. Bf1 {[%clk 0:03:01]}  Nxe5 {[%clk 0:02:57]} 8. Rxe5 {[%clk 0:03:01]}  O-O {[%clk 0:02:58]} 9. d4 {[%clk 0:03:00]}  Bf6 {[%clk 0:02:56]} 10. Re1 {[%clk 0:03:00]}  Re8 {[%clk 0:02:57]} 11. Rxe8+ {[%clk 0:02:59]}  Nxe8 {[%clk 0:02:57]} 12. d5 {[%clk 0:02:59]}  b6 {[%clk 0:02:43]} 13. Nd2 {[%clk 0:02:56]}  Nd6 {[%clk 0:02:38]} 14. g3 {[%clk 0:02:39]}  Bb7 {[%clk 0:02:34]} 15. Bg2 {[%clk 0:02:38]}  Qe7 {[%clk 0:02:31]} 16. Nf1 {[%clk 0:02:33]}  Re8 {[%clk 0:02:23]} 17. c3 {[%clk 0:02:17]}  Ba6 {[%clk 0:01:51]} 18. Ne3 {[%clk 0:02:04]}  Nc4 {[%clk 0:01:46]} 19. Qa4 {[%clk 0:01:52]}  Nxe3 {[%clk 0:01:39]} 20. Bxe3 {[%clk 0:01:52]}  Bd3 {[%clk 0:01:30]} 21. Rd1 {[%clk 0:01:35]}  Be4 {[%clk 0:01:27]} 22. Bxe4 {[%clk 0:01:16]}  Qxe4 {[%clk 0:01:27]} 23. Qxd7 {[%clk 0:01:16]}  h5 {[%clk 0:01:18]} 24. h4 {[%clk 0:01:11]}  Re7 {[%clk 0:01:16]} 25. Qc8+ {[%clk 0:01:09]}  Kh7 {[%clk 0:01:15]} 26. Qh3 {[%clk 0:01:06]}  Qc2 {[%clk 0:01:11]} 27. Rd2 {[%clk 0:00:59]}  Qb1+ {[%clk 0:01:06]} 28. Kh2 {[%clk 0:00:53]}  g6 {[%clk 0:01:01]} 29. a3 {[%clk 0:00:45]}  Be5 {[%clk 0:01:00]} 30. Qg2 {[%clk 0:00:36]}  Bd6 {[%clk 0:00:58]} 31. Qf3 {[%clk 0:00:34]}  a5 {[%clk 0:00:56]} 32. Bg5 {[%clk 0:00:31]}  Rd7 {[%clk 0:00:46]} 33. Re2 {[%clk 0:00:28]}  Qd1 {[%clk 0:00:38]} 34. Kg2 {[%clk 0:00:23]}  Bf8 {[%clk 0:00:36]} 35. c4 {[%clk 0:00:18]}  Bg7 {[%clk 0:00:36]} 36. g4 {[%clk 0:00:15]}  hxg4 {[%clk 0:00:34]} 37. Qxg4 {[%clk 0:00:15]}  Rd6 {[%clk 0:00:32]} 38. Qf3 {[%clk 0:00:12]}  c6 {[%clk 0:00:29]} 39. dxc6 {[%clk 0:00:11]}  Rxc6 {[%clk 0:00:28]} 40. Qxc6 {[%clk 0:00:09]}  Qxe2 {[%clk 0:00:27]} 41. b4 {[%clk 0:00:08]}  axb4 {[%clk 0:00:25]} 42. axb4 {[%clk 0:00:08]}  Qg4+ {[%clk 0:00:24]} 43. Kf1 {[%clk 0:00:09]}  Qd1+ {[%clk 0:00:24]} 44. Kg2 {[%clk 0:00:09]}  Qg4+ {[%clk 0:00:24]} 45. Kh1 {[%clk 0:00:10]}  Qh3+ {[%clk 0:00:22]} 46. Kg1 {[%clk 0:00:10]}  Qg4+ {[%clk 0:00:23]} 47. Kf1 {[%clk 0:00:09]}  Qd1+ {[%clk 0:00:22]} 48. Kg2 {[%clk 0:00:09]}  Qg4+ {[%clk 0:00:22]} 1/2-1/2


[Site "https://www.chess.com"]